[Event "Late-Titled-Tuesday-Blitz-October-03-2023"]
[Site "Chess.com"]
[Date "2023.10.03"]
[Round "1"]
[White "Djager97"]
[Black "ritanovikova"]
[Result "1-0"]
[WhiteElo "2548"]
[BlackElo "2187"]
[TimeControl "180+1"]
[EndTime "14:08:26 PDT"]
[Termination "Djager97 won on time"]

1. e4 {[%clk 0:03:00.9]} 1... d5 {[%clk 0:02:54.6]} 2. exd5 {[%clk 0:03:00.6]}
2... Qxd5 {[%clk 0:02:53.3]} 3. Nc3 {[%clk 0:03:00.5]} 3... Qd6 {[%clk
0:02:53.9]} 4. d4 {[%clk 0:03:00.6]} 4... Nf6 {[%clk 0:02:54]} 5. Nf3 {[%clk
0:03:00.6]} 5... a6 {[%clk 0:02:52]} 6. g3 {[%clk 0:02:57.1]} 6... Bg4 {[%clk
0:02:51.4]} 7. h3 {[%clk 0:02:54.6]} 7... Bxf3 {[%clk 0:02:48.2]} 8. Qxf3 {[%clk
0:02:55.5]} 8... Nc6 {[%clk 0:02:48.3]} 9. Be3 {[%clk 0:02:48]} 9... O-O-O
{[%clk 0:02:40.7]} 10. O-O-O {[%clk 0:02:47.4]} 10... e6 {[%clk 0:02:33.2]} 11.
Bg2 {[%clk 0:02:45.4]} 11... Nd5 {[%clk 0:02:33.3]} 12. Nxd5 {[%clk 0:02:32.5]}
12... exd5 {[%clk 0:02:34.2]} 13. Qxf7 {[%clk 0:02:30.9]} 13... Nb4 {[%clk
0:02:08.4]} 14. Kb1 {[%clk 0:02:16.4]} 14... Rd7 {[%clk 0:01:52.8]} 15. Qe8+
{[%clk 0:02:06.6]} 15... Rd8 {[%clk 0:01:51.8]} 16. Qe5 {[%clk 0:02:07.3]} 16...
Qb6 {[%clk 0:01:35.9]} 17. c3 {[%clk 0:01:53.3]} 17... Nc6 {[%clk 0:01:28.8]}
18. Qf5+ {[%clk 0:01:52.1]} 18... Kb8 {[%clk 0:01:28.9]} 19. Qd3 {[%clk
0:01:47.5]} 19... Ba3 {[%clk 0:01:25.9]} 20. Bc1 {[%clk 0:01:44.1]} 20... Na5
{[%clk 0:01:23.6]} 21. Ka1 {[%clk 0:01:39.8]} 21... Be7 {[%clk 0:01:16.4]} 22.
Rhe1 {[%clk 0:01:40.1]} 22... Bf6 {[%clk 0:01:15.9]} 23. Re2 {[%clk 0:01:31.5]}
23... Rhe8 {[%clk 0:01:10.1]} 24. Rxe8 {[%clk 0:01:30.8]} 24... Rxe8 {[%clk
0:01:10]} 25. Bxd5 {[%clk 0:01:31.7]} 25... Qd6 {[%clk 0:01:04.4]} 26. Bf3
{[%clk 0:01:21.7]} 26... Nc6 {[%clk 0:00:56.6]} 27. Bf4 {[%clk 0:01:18.9]} 27...
Qd7 {[%clk 0:00:56.4]} 28. Qd2 {[%clk 0:01:09.2]} 28... h6 {[%clk 0:00:55.5]}
29. Re1 {[%clk 0:01:03.7]} 29... Rd8 {[%clk 0:00:55.2]} 30. h4 {[%clk
0:00:52.8]} 30... Na5 {[%clk 0:00:51.3]} 31. Qe2 {[%clk 0:00:39.2]} 31... Qa4
{[%clk 0:00:48.9]} 32. Qe6 {[%clk 0:00:35.8]} 32... Qb5 {[%clk 0:00:29.5]} 33.
Qf7 {[%clk 0:00:24.5]} 33... Rd7 {[%clk 0:00:26.1]} 34. Qe8+ {[%clk 0:00:20.8]}
34... Ka7 {[%clk 0:00:25.6]} 35. Bg4 {[%clk 0:00:20.8]} 35... Re7 {[%clk
0:00:23.6]} 36. Rxe7 {[%clk 0:00:17]} 36... Bxe7 {[%clk 0:00:20.3]} 37. Qxb5
{[%clk 0:00:16.6]} 37... axb5 {[%clk 0:00:19.8]} 38. Bxc7 {[%clk 0:00:17.1]}
38... Nc4 {[%clk 0:00:19]} 39. Kb1 {[%clk 0:00:15.4]} 39... Nd2+ {[%clk
0:00:18.3]} 40. Kc2 {[%clk 0:00:15.5]} 40... Ne4 {[%clk 0:00:18.4]} 41. f3
{[%clk 0:00:15.9]} 41... Nf6 {[%clk 0:00:17.6]} 42. Be5 {[%clk 0:00:16.2]} 42...
Ne8 {[%clk 0:00:17]} 43. Bh5 {[%clk 0:00:15.7]} 43... Nf6 {[%clk 0:00:15.1]} 44.
g4 {[%clk 0:00:15.8]} 44... Kb6 {[%clk 0:00:13.6]} 45. Bg6 {[%clk 0:00:15.9]}
45... Bf8 {[%clk 0:00:10.1]} 46. g5 {[%clk 0:00:15.7]} 46... hxg5 {[%clk
0:00:10.2]} 47. hxg5 {[%clk 0:00:16.4]} 47... Nd5 {[%clk 0:00:10.3]} 48. f4
{[%clk 0:00:16.6]} 48... Ne3+ {[%clk 0:00:09.3]} 49. Kd3 {[%clk 0:00:16.3]}
49... Nc4 {[%clk 0:00:09.9]} 50. b3 {[%clk 0:00:16.3]} 50... Na5 {[%clk
0:00:07.6]} 51. Be4 {[%clk 0:00:14]} 51... Ka6 {[%clk 0:00:05.3]} 52. f5 {[%clk
0:00:14]} 52... b6 {[%clk 0:00:05.2]} 53. g6 {[%clk 0:00:14]} 53... b4 {[%clk
0:00:04.1]} 54. c4 {[%clk 0:00:13.9]} 54... Nb7 {[%clk 0:00:03]} 55. Bxb7+
{[%clk 0:00:13.5]} 55... Kxb7 {[%clk 0:00:03.9]} 56. f6 {[%clk 0:00:14]} 56...
gxf6 {[%clk 0:00:03.8]} 57. Bxf6 {[%clk 0:00:14.4]} 1-0

[Event "Late-Titled-Tuesday-Blitz-October-03-2023"]
[Site "Chess.com"]
[Date "2023.10.03"]
[Round "1"]
[White "kingofthenil"]
[Black "stasOR4ik"]
[Result "1-0"]
[WhiteElo "2802"]
[BlackElo "2432"]
[TimeControl "180+1"]
[EndTime "14:08:30 PDT"]
[Termination "kingofthenil won by checkmate"]

1. e4 {[%clk 0:02:42.7]} 1... c6 {[%clk 0:02:59.6]} 2. c4 {[%clk 0:02:18.6]}
2... d5 {[%clk 0:02:59.7]} 3. cxd5 {[%clk 0:02:19.5]} 3... cxd5 {[%clk
0:03:00.6]} 4. exd5 {[%clk 0:02:20.3]} 4... Nf6 {[%clk 0:03:01]} 5. Nc3 {[%clk
0:02:19.3]} 5... Nxd5 {[%clk 0:03:01.4]} 6. Nf3 {[%clk 0:02:19.1]} 6... Nc6
{[%clk 0:03:00.4]} 7. Bb5 {[%clk 0:02:18.2]} 7... Bg4 {[%clk 0:02:57]} 8. Qa4
{[%clk 0:02:13.6]} 8... Nxc3 {[%clk 0:02:13.6]} 9. Bxc6+ {[%clk 0:01:31.5]} 9...
bxc6 {[%clk 0:02:10.5]} 10. Qxc6+ {[%clk 0:01:32.4]} 10... Bd7 {[%clk
0:02:10.3]} 11. Qxc3 {[%clk 0:01:28.9]} 11... Bb5 {[%clk 0:02:07.3]} 12. Qb3
{[%clk 0:01:14.1]} 12... Rb8 {[%clk 0:01:59.3]} 13. Ne5 {[%clk 0:01:03.6]} 13...
e6 {[%clk 0:01:57.9]} 14. a4 {[%clk 0:01:02.4]} 14... Ba6 {[%clk 0:01:42.9]} 15.
Qf3 {[%clk 0:01:01.2]} 15... Qc7 {[%clk 0:01:29.4]} 16. Nxf7 {[%clk 0:00:50.3]}
16... Bc4 {[%clk 0:00:21.2]} 17. Nxh8 {[%clk 0:00:46.6]} 17... Rb3 {[%clk
0:00:17.3]} 18. Qf7+ {[%clk 0:00:27.1]} 18... Qxf7 {[%clk 0:00:16.6]} 19. Nxf7
{[%clk 0:00:28]} 19... Kxf7 {[%clk 0:00:17.4]} 20. d3 {[%clk 0:00:28.2]} 20...
Rxd3 {[%clk 0:00:15.9]} 21. Bd2 {[%clk 0:00:25.8]} 21... Bd5 {[%clk 0:00:12.6]}
22. f3 {[%clk 0:00:23.4]} 22... Rb3 {[%clk 0:00:11.7]} 23. O-O-O {[%clk
0:00:19.7]} 23... Be7 {[%clk 0:00:10.2]} 24. Bc3 {[%clk 0:00:18.2]} 24... Bg5+
{[%clk 0:00:09.4]} 25. Kc2 {[%clk 0:00:18.2]} 25... Rb7 {[%clk 0:00:08.6]} 26.
Rhe1 {[%clk 0:00:17.5]} 26... Bb3+ {[%clk 0:00:08.7]} 27. Kd3 {[%clk 0:00:16.7]}
27... Bxd1 {[%clk 0:00:08.5]} 28. Rxd1 {[%clk 0:00:17.6]} 28... Rd7+ {[%clk
0:00:08.6]} 29. Ke2 {[%clk 0:00:17.9]} 29... Rxd1 {[%clk 0:00:08.6]} 30. Kxd1
{[%clk 0:00:18.1]} 30... g6 {[%clk 0:00:09.4]} 31. Ke2 {[%clk 0:00:18.3]} 31...
Ke7 {[%clk 0:00:08.6]} 32. Kd3 {[%clk 0:00:18]} 32... Kd6 {[%clk 0:00:09]} 33.
Kc4 {[%clk 0:00:18.2]} 33... Kc6 {[%clk 0:00:08.9]} 34. Be5 {[%clk 0:00:18.2]}
34... a6 {[%clk 0:00:08.9]} 35. b4 {[%clk 0:00:18.3]} 35... Bd8 {[%clk
0:00:08.7]} 36. b5+ {[%clk 0:00:19.2]} 36... axb5+ {[%clk 0:00:09]} 37. axb5+
{[%clk 0:00:20.1]} 37... Kb7 {[%clk 0:00:07.8]} 38. Kc5 {[%clk 0:00:21]} 38...
Be7+ {[%clk 0:00:08.1]} 39. Bd6 {[%clk 0:00:20.5]} 39... Bd8 {[%clk 0:00:08.1]}
40. Bf8 {[%clk 0:00:20.1]} 40... Bc7 {[%clk 0:00:08.4]} 41. h3 {[%clk
0:00:20.4]} 41... Bg3 {[%clk 0:00:07.7]} 42. Bd6 {[%clk 0:00:19.6]} 42... Bf2+
{[%clk 0:00:08]} 43. Kc4 {[%clk 0:00:20]} 43... Kb6 {[%clk 0:00:08]} 44. Be7
{[%clk 0:00:19.4]} 44... Kb7 {[%clk 0:00:07.7]} 45. Bc5 {[%clk 0:00:19.4]} 45...
Bg3 {[%clk 0:00:07.6]} 46. Kd3 {[%clk 0:00:19.1]} 46... Kc7 {[%clk 0:00:07.5]}
47. Ke4 {[%clk 0:00:19.4]} 47... Kd7 {[%clk 0:00:07.8]} 48. Bd4 {[%clk
0:00:19.4]} 48... Bd6 {[%clk 0:00:07.8]} 49. Be5 {[%clk 0:00:19.5]} 49... Bc5
{[%clk 0:00:08]} 50. Kf4 {[%clk 0:00:19.8]} 50... Ke7 {[%clk 0:00:07.8]} 51. Kg5
{[%clk 0:00:20.1]} 51... Bb6 {[%clk 0:00:07.6]} 52. Kh6 {[%clk 0:00:20.4]} 52...
Kf7 {[%clk 0:00:07.6]} 53. Kxh7 {[%clk 0:00:20.7]} 53... Bd8 {[%clk 0:00:03.9]}
54. g3 {[%clk 0:00:20.5]} 54... Bb6 {[%clk 0:00:04]} 55. h4 {[%clk 0:00:20.2]}
55... Bc5 {[%clk 0:00:03.1]} 56. g4 {[%clk 0:00:20.2]} 56... Bb6 {[%clk
0:00:03.4]} 57. h5 {[%clk 0:00:18.4]} 57... gxh5 {[%clk 0:00:03.2]} 58. g5
{[%clk 0:00:19.3]} 58... Ba5 {[%clk 0:00:03.6]} 59. g6+ {[%clk 0:00:19.6]} 59...
Ke7 {[%clk 0:00:03]} 60. g7 {[%clk 0:00:20.5]} 60... Bc3 {[%clk 0:00:03.2]} 61.
g8=Q {[%clk 0:00:20.8]} 61... Bxe5 {[%clk 0:00:03.9]} 62. Kg6 {[%clk 0:00:21.5]}
62... Kd6 {[%clk 0:00:04.3]} 63. Kf7 {[%clk 0:00:21.4]} 63... h4 {[%clk
0:00:05.2]} 64. Qg6 {[%clk 0:00:21.5]} 64... h3 {[%clk 0:00:05]} 65. Qxe6+
{[%clk 0:00:22.4]} 65... Kc5 {[%clk 0:00:04.8]} 66. Qxe5+ {[%clk 0:00:22.9]}
66... Kb6 {[%clk 0:00:05.6]} 67. Qe6+ {[%clk 0:00:22.9]} 67... Ka5 {[%clk
0:00:06.1]} 68. Qxh3 {[%clk 0:00:23.8]} 68... Kb6 {[%clk 0:00:05.9]} 69. Qf5
{[%clk 0:00:23.7]} 69... Ka7 {[%clk 0:00:06.1]} 70. Qc5+ {[%clk 0:00:23.7]}
70... Kb7 {[%clk 0:00:05.9]} 71. Qd6 {[%clk 0:00:24.6]} 71... Ka8 {[%clk
0:00:06.2]} 72. Ke6 {[%clk 0:00:25.5]} 72... Kb7 {[%clk 0:00:06.6]} 73. Kd5
{[%clk 0:00:26.4]} 73... Kc8 {[%clk 0:00:07.3]} 74. Qe7 {[%clk 0:00:26.8]} 74...
Kb8 {[%clk 0:00:06.7]} 75. Kc6 {[%clk 0:00:27.7]} 75... Ka8 {[%clk 0:00:07.6]}
76. Qb7# {[%clk 0:00:27.9]} 1-0

[Event "Late-Titled-Tuesday-Blitz-October-03-2023"]
[Site "Chess.com"]
[Date "2023.10.03"]
[Round "1"]
[White "OparinGrigoriy"]
[Black "Marcin"]
[Result "1-0"]
[WhiteElo "2995"]
[BlackElo "2497"]
[TimeControl "180+1"]
[EndTime "14:08:31 PDT"]
[Termination "OparinGrigoriy won on time"]

1. d4 {[%clk 0:02:55.7]} 1... d5 {[%clk 0:02:53.3]} 2. Nf3 {[%clk 0:02:56.6]}
2... Nf6 {[%clk 0:02:52.7]} 3. Bg5 {[%clk 0:02:57.3]} 3... e6 {[%clk 0:02:52.3]}
4. Nbd2 {[%clk 0:02:57.1]} 4... Be7 {[%clk 0:02:52.1]} 5. e3 {[%clk 0:02:57.6]}
5... h6 {[%clk 0:02:52.2]} 6. Bf4 {[%clk 0:02:56.9]} 6... O-O {[%clk 0:02:51.6]}
7. Bd3 {[%clk 0:02:57.2]} 7... Nbd7 {[%clk 0:02:49]} 8. h3 {[%clk 0:02:57]} 8...
c5 {[%clk 0:02:49.5]} 9. c3 {[%clk 0:02:56.1]} 9... b6 {[%clk 0:02:49.5]} 10.
Qe2 {[%clk 0:02:55.8]} 10... Bb7 {[%clk 0:02:49.9]} 11. O-O {[%clk 0:02:56.5]}
11... Ne4 {[%clk 0:02:49.6]} 12. a4 {[%clk 0:02:53.4]} 12... Ndf6 {[%clk
0:02:42.9]} 13. Ne5 {[%clk 0:02:52.5]} 13... Bd6 {[%clk 0:02:39.4]} 14. Ndf3
{[%clk 0:02:47.4]} 14... Qc7 {[%clk 0:02:38.1]} 15. Rfc1 {[%clk 0:02:39.6]}
15... Rfe8 {[%clk 0:02:36]} 16. c4 {[%clk 0:02:34.1]} 16... dxc4 {[%clk
0:02:26.5]} 17. Bxc4 {[%clk 0:02:35]} 17... Nd5 {[%clk 0:02:23.9]} 18. Bh2
{[%clk 0:02:27.5]} 18... Qe7 {[%clk 0:02:06.5]} 19. dxc5 {[%clk 0:02:18.1]}
19... Bxc5 {[%clk 0:02:03]} 20. Bb5 {[%clk 0:02:17.6]} 20... Rec8 {[%clk
0:01:56.4]} 21. Nd4 {[%clk 0:01:27.4]} 21... Nb4 {[%clk 0:01:45.9]} 22. Qg4
{[%clk 0:01:12.2]} 22... Qf6 {[%clk 0:01:30]} 23. f3 {[%clk 0:00:52.4]} 23...
Bxd4 {[%clk 0:01:17.1]} 24. exd4 {[%clk 0:00:33.7]} 24... Nd2 {[%clk 0:01:11.8]}
25. Nd7 {[%clk 0:00:28.3]} 25... Qg5 {[%clk 0:00:59.4]} 26. Qxg5 {[%clk
0:00:19.8]} 26... hxg5 {[%clk 0:01:00.3]} 27. Rc3 {[%clk 0:00:17.4]} 27... Bd5
{[%clk 0:00:40.9]} 28. Rac1 {[%clk 0:00:17]} 28... Rd8 {[%clk 0:00:41.1]} 29.
Rc7 {[%clk 0:00:15.8]} 29... Nb3 {[%clk 0:00:40.9]} 30. Rd1 {[%clk 0:00:15.5]}
30... a6 {[%clk 0:00:34.6]} 31. Bf1 {[%clk 0:00:14.3]} 31... Rac8 {[%clk
0:00:32.3]} 32. Rxc8 {[%clk 0:00:14]} 32... Rxc8 {[%clk 0:00:32.5]} 33. Nxb6
{[%clk 0:00:14.9]} 33... Rc2 {[%clk 0:00:31.3]} 34. Nxd5 {[%clk 0:00:15.1]}
34... exd5 {[%clk 0:00:31.7]} 35. Bd6 {[%clk 0:00:15.6]} 35... a5 {[%clk
0:00:32]} 36. Re1 {[%clk 0:00:10.4]} 36... Rxb2 {[%clk 0:00:22.5]} 37. Re5
{[%clk 0:00:07.5]} 37... f6 {[%clk 0:00:20.8]} 38. Re8+ {[%clk 0:00:07.3]} 38...
Kf7 {[%clk 0:00:19.5]} 39. Re7+ {[%clk 0:00:07.7]} 39... Kg6 {[%clk 0:00:20]}
40. Bxb4 {[%clk 0:00:07.6]} 40... axb4 {[%clk 0:00:20.3]} 41. Bd3+ {[%clk
0:00:08.3]} 41... Kh6 {[%clk 0:00:20.2]} 42. Rb7 {[%clk 0:00:07.9]} 42... Nc1
{[%clk 0:00:18.1]} 43. Bf1 {[%clk 0:00:07.2]} 43... b3 {[%clk 0:00:18.1]} 44. a5
{[%clk 0:00:07.6]} 44... Ra2 {[%clk 0:00:17.9]} 45. Rb5 {[%clk 0:00:07.9]} 45...
b2 {[%clk 0:00:17.3]} 46. a6 {[%clk 0:00:08.6]} 46... Ne2+ {[%clk 0:00:13.4]}
47. Bxe2 {[%clk 0:00:05.9]} 47... Ra1+ {[%clk 0:00:14]} 48. Kf2 {[%clk
0:00:05.6]} 48... b1=Q {[%clk 0:00:14.2]} 49. Rxb1 {[%clk 0:00:06]} 49... Rxb1
{[%clk 0:00:15.1]} 50. Bd3 {[%clk 0:00:05.6]} 50... Ra1 {[%clk 0:00:12.3]} 51.
Ke2 {[%clk 0:00:04.9]} 51... g6 {[%clk 0:00:09.7]} 52. Kd2 {[%clk 0:00:05.2]}
52... Ra3 {[%clk 0:00:08.6]} 53. Kc2 {[%clk 0:00:05.2]} 53... f5 {[%clk
0:00:08.8]} 54. Kb2 {[%clk 0:00:05.3]} 54... Ra5 {[%clk 0:00:08.5]} 55. Kb3
{[%clk 0:00:05.1]} 55... g4 {[%clk 0:00:08.9]} 56. Kb4 {[%clk 0:00:04.8]} 56...
Ra1 {[%clk 0:00:08.1]} 57. fxg4 {[%clk 0:00:05.3]} 57... fxg4 {[%clk 0:00:07.9]}
58. hxg4 {[%clk 0:00:06.2]} 58... Kg5 {[%clk 0:00:08.2]} 59. Bb5 {[%clk
0:00:06.9]} 59... Kxg4 {[%clk 0:00:06.9]} 60. Ba4 {[%clk 0:00:07.3]} 60... Rb1+
{[%clk 0:00:04.5]} 61. Ka5 {[%clk 0:00:07.7]} 61... Rb8 {[%clk 0:00:04]} 62. Bc6
{[%clk 0:00:08.4]} 62... Kf4 {[%clk 0:00:03.1]} 63. a7 {[%clk 0:00:08.6]} 63...
Rd8 {[%clk 0:00:02.5]} 64. Kb5 {[%clk 0:00:06.8]} 1-0

[Event "Late-Titled-Tuesday-Blitz-October-03-2023"]
[Site "Chess.com"]
[Date "2023.10.03"]
[Round "1"]
[White "Metadast"]
[Black "Elbebiber"]
[Result "1-0"]
[WhiteElo "2538"]
[BlackElo "2144"]
[TimeControl "180+1"]
[EndTime "14:08:31 PDT"]
[Termination "Metadast won on time"]

1. e4 {[%clk 0:03:00.7]} 1... d5 {[%clk 0:02:54.4]} 2. exd5 {[%clk 0:02:59.8]}
2... Nf6 {[%clk 0:02:54.2]} 3. Bb5+ {[%clk 0:02:59.2]} 3... Bd7 {[%clk
0:02:53.6]} 4. Bc4 {[%clk 0:02:59.3]} 4... Bg4 {[%clk 0:02:50]} 5. f3 {[%clk
0:02:59.4]} 5... Bf5 {[%clk 0:02:49.7]} 6. g4 {[%clk 0:02:59.7]} 6... Bc8 {[%clk
0:02:40.4]} 7. Nc3 {[%clk 0:02:59.3]} 7... c6 {[%clk 0:02:35]} 8. dxc6 {[%clk
0:02:58.1]} 8... Nxc6 {[%clk 0:02:35]} 9. Nge2 {[%clk 0:02:48.9]} 9... e6 {[%clk
0:02:24.7]} 10. d4 {[%clk 0:02:45.8]} 10... Bb4 {[%clk 0:02:06.6]} 11. Bg5
{[%clk 0:02:31.6]} 11... h6 {[%clk 0:02:00.1]} 12. Bh4 {[%clk 0:02:30.9]} 12...
Qa5 {[%clk 0:01:46.5]} 13. a3 {[%clk 0:02:13.4]} 13... Be7 {[%clk 0:01:44.1]}
14. Bg3 {[%clk 0:01:53.3]} 14... Nd5 {[%clk 0:01:30.1]} 15. b4 {[%clk 0:01:48]}
15... Qd8 {[%clk 0:01:27]} 16. Nxd5 {[%clk 0:01:38.6]} 16... exd5 {[%clk
0:01:26.6]} 17. Bd3 {[%clk 0:01:39]} 17... Bf6 {[%clk 0:01:19.2]} 18. c3 {[%clk
0:01:38.2]} 18... Be6 {[%clk 0:01:14.4]} 19. O-O {[%clk 0:01:32.4]} 19... O-O
{[%clk 0:01:09.8]} 20. Bc2 {[%clk 0:01:29.2]} 20... g6 {[%clk 0:01:03.3]} 21.
Nf4 {[%clk 0:01:24]} 21... Qd7 {[%clk 0:00:56.9]} 22. Nxe6 {[%clk 0:01:17.7]}
22... Qxe6 {[%clk 0:00:55.5]} 23. Qd2 {[%clk 0:01:18.1]} 23... Kg7 {[%clk
0:00:52.9]} 24. Rae1 {[%clk 0:01:18]} 24... Qd7 {[%clk 0:00:52.5]} 25. h3 {[%clk
0:01:12.9]} 25... Rac8 {[%clk 0:00:48]} 26. f4 {[%clk 0:01:11.6]} 26... Rfe8
{[%clk 0:00:42.5]} 27. f5 {[%clk 0:01:07.7]} 27... g5 {[%clk 0:00:40.3]} 28. Qd3
{[%clk 0:00:55]} 28... Rxe1 {[%clk 0:00:33.6]} 29. Rxe1 {[%clk 0:00:55.9]} 29...
Re8 {[%clk 0:00:33.7]} 30. Re3 {[%clk 0:00:53.6]} 30... a6 {[%clk 0:00:30.7]}
31. Bb3 {[%clk 0:00:52.5]} 31... Re7 {[%clk 0:00:20.1]} 32. Rxe7 {[%clk
0:00:45]} 32... Nxe7 {[%clk 0:00:19.4]} 33. Be5 {[%clk 0:00:45.2]} 33... Nc6
{[%clk 0:00:17.5]} 34. Bxf6+ {[%clk 0:00:42.4]} 34... Kxf6 {[%clk 0:00:17.8]}
35. Qf3 {[%clk 0:00:42.9]} 35... Ne7 {[%clk 0:00:16.6]} 36. Qe3 {[%clk
0:00:42.3]} 36... Qd6 {[%clk 0:00:15.5]} 37. h4 {[%clk 0:00:33.6]} 37... Nc6
{[%clk 0:00:13.5]} 38. Kg2 {[%clk 0:00:31.4]} 38... b5 {[%clk 0:00:11.7]} 39.
hxg5+ {[%clk 0:00:24.1]} 39... hxg5 {[%clk 0:00:11.5]} 40. Qg3 {[%clk
0:00:20.1]} 40... Qxg3+ {[%clk 0:00:10]} 41. Kxg3 {[%clk 0:00:21]} 41... Ne7
{[%clk 0:00:08.8]} 42. a4 {[%clk 0:00:20.3]} 42... Kg7 {[%clk 0:00:07.2]} 43.
axb5 {[%clk 0:00:20.3]} 43... axb5 {[%clk 0:00:08.1]} 44. Bc2 {[%clk 0:00:20.1]}
44... f6 {[%clk 0:00:08.3]} 45. Bd3 {[%clk 0:00:20.1]} 45... Nc8 {[%clk
0:00:07.3]} 46. Bxb5 {[%clk 0:00:20.1]} 46... Nd6 {[%clk 0:00:07.9]} 47. Bd3
{[%clk 0:00:19.8]} 47... Kf7 {[%clk 0:00:07.3]} 48. Kf2 {[%clk 0:00:19.5]} 48...
Ke7 {[%clk 0:00:07.8]} 49. Ke3 {[%clk 0:00:19.7]} 49... Kd7 {[%clk 0:00:07.9]}
50. Kd2 {[%clk 0:00:20.1]} 50... Kc6 {[%clk 0:00:08.5]} 51. Kc2 {[%clk
0:00:20.4]} 51... Nf7 {[%clk 0:00:08]} 52. Kb3 {[%clk 0:00:19.4]} 52... Nh6
{[%clk 0:00:08.3]} 53. Be2 {[%clk 0:00:20]} 53... Nf7 {[%clk 0:00:08.6]} 54. Bf3
{[%clk 0:00:20.4]} 54... Nd6 {[%clk 0:00:08.7]} 55. Be2 {[%clk 0:00:20.2]} 55...
Ne4 {[%clk 0:00:08.7]} 56. Bf3 {[%clk 0:00:20.3]} 56... Nd2+ {[%clk 0:00:08.3]}
57. Kc2 {[%clk 0:00:19.9]} 57... Nxf3 {[%clk 0:00:09.2]} 58. Kd3 {[%clk
0:00:20.1]} 58... Nh4 {[%clk 0:00:07.7]} 59. c4 {[%clk 0:00:16.1]} 59... dxc4+
{[%clk 0:00:07.6]} 60. Kxc4 {[%clk 0:00:17]} 60... Nf3 {[%clk 0:00:05.3]} 61.
b5+ {[%clk 0:00:17.3]} 61... Kb6 {[%clk 0:00:05.5]} 62. Kd5 {[%clk 0:00:17.4]}
62... Kxb5 {[%clk 0:00:03.8]} 63. Ke6 {[%clk 0:00:17.9]} 63... Kc6 {[%clk
0:00:03.6]} 64. Kxf6 {[%clk 0:00:18.6]} 64... Kd5 {[%clk 0:00:04.1]} 65. Kg6
{[%clk 0:00:15.5]} 65... Kxd4 {[%clk 0:00:04.2]} 66. f6 {[%clk 0:00:16.1]} 1-0

[Event "Late-Titled-Tuesday-Blitz-October-03-2023"]
[Site "Chess.com"]
[Date "2023.10.03"]
[Round "1"]
[White "kaanadayhamle"]
[Black "Byniolus"]
[Result "0-1"]
[WhiteElo "2414"]
[BlackElo "2750"]
[TimeControl "180+1"]
[EndTime "14:08:32 PDT"]
[Termination "Byniolus won by resignation"]

1. Nf3 {[%clk 0:02:59.9]} 1... d5 {[%clk 0:02:59.6]} 2. g3 {[%clk 0:02:59.5]}
2... Nf6 {[%clk 0:02:59.7]} 3. Bg2 {[%clk 0:03:00.1]} 3... Bf5 {[%clk
0:03:00.2]} 4. O-O {[%clk 0:03:00.7]} 4... e6 {[%clk 0:03:00.8]} 5. c4 {[%clk
0:03:00.7]} 5... c6 {[%clk 0:03:01.3]} 6. d4 {[%clk 0:03:01]} 6... Nbd7 {[%clk
0:03:01]} 7. cxd5 {[%clk 0:03:00.6]} 7... exd5 {[%clk 0:02:58.9]} 8. Nc3 {[%clk
0:03:01.5]} 8... Bd6 {[%clk 0:02:56.4]} 9. Bg5 {[%clk 0:02:59.4]} 9... h6 {[%clk
0:02:54.4]} 10. Bf4 {[%clk 0:02:59.2]} 10... Bxf4 {[%clk 0:02:53.9]} 11. gxf4
{[%clk 0:03:00.1]} 11... O-O {[%clk 0:02:47.4]} 12. e3 {[%clk 0:02:59.7]} 12...
Re8 {[%clk 0:02:46.2]} 13. Ne5 {[%clk 0:02:58.4]} 13... Nf8 {[%clk 0:02:45.7]}
14. Qb3 {[%clk 0:02:57]} 14... Qb6 {[%clk 0:02:44.2]} 15. Qxb6 {[%clk
0:02:55.5]} 15... axb6 {[%clk 0:02:45.1]} 16. a3 {[%clk 0:02:56]} 16... b5
{[%clk 0:02:42.8]} 17. Rac1 {[%clk 0:02:55.1]} 17... N6d7 {[%clk 0:02:39.3]} 18.
Rfd1 {[%clk 0:02:53.8]} 18... Nb6 {[%clk 0:02:38.8]} 19. Ne2 {[%clk 0:02:50]}
19... f6 {[%clk 0:02:34.8]} 20. Nd3 {[%clk 0:02:33.7]} 20... Nc4 {[%clk
0:02:34.8]} 21. Rc2 {[%clk 0:02:34]} 21... Nd7 {[%clk 0:02:23.4]} 22. Ng3 {[%clk
0:02:33.2]} 22... Bh7 {[%clk 0:02:18.6]} 23. Bh3 {[%clk 0:02:31]} 23... Ndb6
{[%clk 0:02:16.5]} 24. Bf5 {[%clk 0:02:31.1]} 24... Nd6 {[%clk 0:02:11.6]} 25.
Bxh7+ {[%clk 0:02:29.9]} 25... Kxh7 {[%clk 0:02:12.5]} 26. Nc5 {[%clk
0:02:30.3]} 26... Nbc4 {[%clk 0:02:10.4]} 27. Rdc1 {[%clk 0:02:18.3]} 27... g5
{[%clk 0:02:00.5]} 28. fxg5 {[%clk 0:02:15.4]} 28... hxg5 {[%clk 0:02:00.2]} 29.
Kg2 {[%clk 0:02:07.3]} 29... Kg6 {[%clk 0:02:00.1]} 30. Kf3 {[%clk 0:02:04.8]}
30... Rh8 {[%clk 0:01:58.6]} 31. Kg2 {[%clk 0:02:04.6]} 31... Rae8 {[%clk
0:01:53.8]} 32. Re2 {[%clk 0:01:50.4]} 32... Rh7 {[%clk 0:01:42]} 33. Ra1 {[%clk
0:01:49.2]} 33... Reh8 {[%clk 0:01:09.6]} 34. Nf1 {[%clk 0:01:23.9]} 34... Nf5
{[%clk 0:01:05.2]} 35. b3 {[%clk 0:01:11.6]} 35... Ncd6 {[%clk 0:01:05.6]} 36.
f3 {[%clk 0:00:54.3]} 36... Re8 {[%clk 0:00:53]} 37. Rae1 {[%clk 0:00:50.2]}
37... Rhe7 {[%clk 0:00:46.5]} 38. Kf2 {[%clk 0:00:37.5]} 38... Ra8 {[%clk
0:00:46.5]} 39. Ra1 {[%clk 0:00:32.5]} 39... Ng7 {[%clk 0:00:23.8]} 40. Nd3
{[%clk 0:00:20.2]} 40... Ne6 {[%clk 0:00:19.3]} 41. Ng3 {[%clk 0:00:16.4]} 41...
Rh7 {[%clk 0:00:17.6]} 42. Kg1 {[%clk 0:00:15.6]} 42... Re8 {[%clk 0:00:17]} 43.
Rae1 {[%clk 0:00:14.9]} 43... Rhe7 {[%clk 0:00:15.8]} 44. Kf2 {[%clk 0:00:14.5]}
44... Nf7 {[%clk 0:00:14.4]} 45. Kg1 {[%clk 0:00:12.5]} 45... f5 {[%clk
0:00:12.5]} 46. f4 {[%clk 0:00:11]} 46... gxf4 {[%clk 0:00:05.4]} 47. Nxf4+
{[%clk 0:00:11.9]} 47... Nxf4 {[%clk 0:00:05.5]} 48. exf4 {[%clk 0:00:12.8]}
48... Rxe2 {[%clk 0:00:03.4]} 49. Rxe2 {[%clk 0:00:13.7]} 49... Rxe2 {[%clk
0:00:03.5]} 50. Nxe2 {[%clk 0:00:14.6]} 50... Nd6 {[%clk 0:00:02.7]} 51. Kf2
{[%clk 0:00:14.3]} 51... Ne4+ {[%clk 0:00:02.6]} 52. Ke3 {[%clk 0:00:14.4]}
52... b6 {[%clk 0:00:01.7]} 53. b4 {[%clk 0:00:13.3]} 53... Nd6 {[%clk
0:00:01.8]} 54. Kd3 {[%clk 0:00:11.8]} 54... Nc4 {[%clk 0:00:02.7]} 55. Nc3
{[%clk 0:00:11.4]} 55... Nxa3 {[%clk 0:00:02.9]} 56. Nd1 {[%clk 0:00:12]} 56...
Nc4 {[%clk 0:00:03]} 57. Nf2 {[%clk 0:00:12.4]} 57... Nd6 {[%clk 0:00:03]} 58.
Ke3 {[%clk 0:00:12.1]} 58... Ne4 {[%clk 0:00:02.6]} 59. Nd3 {[%clk 0:00:12.4]}
59... Kf6 {[%clk 0:00:03]} 60. Ne5 {[%clk 0:00:12.6]} 60... c5 {[%clk
0:00:03.7]} 61. bxc5 {[%clk 0:00:11.8]} 61... bxc5 {[%clk 0:00:04.6]} 62. dxc5
{[%clk 0:00:12.7]} 62... Nxc5 {[%clk 0:00:04]} 63. Kd4 {[%clk 0:00:13.3]} 63...
Ne6+ {[%clk 0:00:04.5]} 64. Ke3 {[%clk 0:00:12.1]} 64... d4+ {[%clk 0:00:04.5]}
65. Kf3 {[%clk 0:00:12.8]} 65... b4 {[%clk 0:00:04.8]} 66. Nd3 {[%clk
0:00:13.4]} 66... b3 {[%clk 0:00:04.9]} 67. Ke2 {[%clk 0:00:12.9]} 67... Nxf4+
{[%clk 0:00:03.4]} 68. Nxf4 {[%clk 0:00:13.7]} 68... b2 {[%clk 0:00:03.8]} 69.
Nd5+ {[%clk 0:00:14.1]} 69... Kg7 {[%clk 0:00:03.6]} 70. Nc3 {[%clk 0:00:12.5]}
70... dxc3 {[%clk 0:00:03.7]} 0-1